[Event "NED-ch U20 Youth 2019"]
[Site "Assen"]
[Date "2019.04.30"]
[Round "3.10"]
[White "Emans, Job"]
[Black "Van Aken, Jelmer"]
[Result "1-0"]
[ECO "E15"]
[WhiteElo "1945"]
[BlackElo "1698"]
[Annotator "NA"]
[PlyCount "87"]
[EventDate "2019.04.28"]
[EventType "swiss"]
[EventCountry "NED"]
[SourceTitle "playchess.com"]
[Source "ChessBase"]
[SourceQuality "1"]
[TimeControl "40/5400+30:1800+30"]

1. d4 {[%emt 0:00:00]} Nf6 {[%emt 0:00:00]} 2. c4 {[%emt 0:00:00]} e6 {[%emt 0:00:00]} 3. Nf3 {[%emt 0:00:00]} b6 {[%emt 0:00:00]} 4. g3 {[%emt 0:00:00]} Ba6 {[%emt 0:00:00]} 5. Qc2 {[%emt 0:00:00]} Bb4+ {[%emt 0:00:11]} 6. Bd2 {[%emt 0:00:34]} Be7 {[%emt 0:00:23]} 7. Bg2 {[%emt 0:00:40]} c6 {[%emt 0:00:12]} 8. O-O {[%emt 0:01:16]} O-O {[%emt 0:00:29]} 9. b3 {[%emt 0:06:12]} d5 {[%emt 0:01:25]} 10. Rd1 {[%emt 0:02:53]} Nbd7 {[%emt 0:02:40]} 11. Bc1 {[%emt 0:07:05] E15: Queen's Indian: 4 g3 sidelines, 4 g3 Ba6 and 4 g3 Bb7 early deviations} (11. Bf4 Rc8 12. Nc3 Nh5 13. Bc1 f5 14. e3 Bd6 15. a4 Nhf6 16. Ne2 c5 17. Nf4 Qe7 18. cxd5 cxd4 19. Qb2 dxe3 20. Nxe6 exf2+ 21. Qxf2 {0-1 (35) Sarana,A (2613)-Jakovenko,D (2748) Satka 2018}) 11... Rc8 {[%emt 0:03:27]} 12. Ba3 {[%emt 0:12:42]} c5 {[%emt 0:07:04]} 13. cxd5 {[%emt 0:06:35]} cxd4 $146 {[%emt 0:03:13]} ({Predecessor:} 13... exd5 14. Qb2 Ne4 15. e3 Re8 16. Nbd2 Bf6 17. Rac1 cxd4 18. Nxe4 dxe4 19. Nxd4 {0-1 (31) Will,P (2081)-Lobzhanidze,D (2448) Hofheim 2013}) 14. Qb2 {[%emt 0:00:32]} Bxa3 $1 {[%emt 0:00:38]} ({Reject} 14... exd5 $6 15. Nxd4 Bc5 16. b4 $14) 15. Nxa3 {[%emt 0:00:17] [#]} e5 $1 {[%emt 0:04:42]} ({Reject} 15... exd5 $6 16. Nxd4 Qe7 17. Nac2 $14) 16. e3 {[%emt 0:14:57] [#]} ({Better is} 16. Rdc1 $15) 16... dxe3 $1 {[%emt 0:01:17]} 17. fxe3 {[%emt 0:00:05]} e4 {[%emt 0:01:36]} 18. Ne5 {[%emt 0:01:33]} Nxe5 {[%emt 0:01:20]} 19. Qxe5 {[%emt 0:00:05]} Re8 {[%emt 0:00:07]} 20. Qd4 {[%emt 0:00:18]} Rc5 {[%emt 0:08:33]} 21. d6 {[%emt 0:09:15]} Bd3 {[%emt 0:02:38]} 22. Rxd3 {[%emt 0:03:56]} exd3 {[%emt 0:00:07]} 23. Qxd3 {[%emt 0:00:23]} Qc8 {[%emt 0:02:15]} 24. Rd1 {[%emt 0:12:29]} (24. Qd2 $142) 24... Rc3 {[%emt 0:03:00]} 25. Qd2 {[%emt 0:01:57]} Qc5 $2 {[%emt 0:05:07]} (25... Rcxe3 $19 26. Nc4 Re2) 26. Nc4 {[%emt 0:01:07]} Rxc4 {[%emt 0:03:57]} 27. bxc4 {[%emt 0:00:11]} Rxe3 {[%emt 0:00:11]} 28. Kh1 {[%emt 0:01:48]} Re8 {[%emt 0:03:46]} 29. Qf4 {[%emt 0:03:23]} h6 {[%emt 0:08:48]} 30. h3 {[%emt 0:01:47]} Nd7 {[%emt 0:07:15]} 31. Bd5 {[%emt 0:01:47]} Nf6 {[%emt 0:00:43]} 32. Bg2 {[%emt 0:00:14]} Rd8 {[%emt 0:04:19]} 33. h4 {[%emt 0:04:29]} Ne8 $11 {[%emt 0:01:54]} 34. d7 {[%emt 0:01:14]} Nf6 {[%emt 0:00:10]} 35. Bh3 {[%emt 0:00:13]} Qc6+ {[%emt 0:01:39]} 36. Kh2 {[%emt 0:00:06]} Qe4 {[%emt 0:05:25]} 37. Qd2 {[%emt 0:02:53]} Qe5 {[%emt 0:05:20]} 38. Re1 {[%emt 0:01:22]} Qc7 {[%emt 0:01:15]} 39. Rd1 {[%emt 0:00:29]} Ne4 {[%emt 0:01:09]} 40. Qe3 {[%emt 0:00:36]} Nf6 {[%emt 0:09:45]} 41. Qe7 {[%emt 0:34:22]} Qb8 {[%emt 0:08:19]} 42. a4 {[%emt 0:00:00]} Qc7 {[%emt 0:01:49]} 43. Rd6 {[%emt 0:00:00]} Nh7 {[%emt 0:08:11]} 44. Rc6 {[%emt 0:00:00]} 1-0

[Event "NED-ch U20 Youth 2019"]
[Site "Assen"]
[Date "2019.05.01"]
[Round "4.1"]
[White "De Boer, Eelke"]
[Black "Vrolijk, Liam"]
[Result "0-1"]
[ECO "C65"]
[WhiteElo "2338"]
[BlackElo "2465"]
[Annotator "ChessBase"]
[PlyCount "86"]
[EventDate "2019.04.28"]
[EventType "swiss"]
[EventCountry "NED"]
[SourceTitle "playchess.com"]
[Source "ChessBase"]
[SourceQuality "1"]
[TimeControl "40/5400+30:1800+30"]

1. e4 {[%emt 0:00:00]} e5 {[%emt 0:00:00]} 2. Nf3 {[%emt 0:00:00]} Nc6 {[%emt 0:00:00]} 3. Bb5 {[%emt 0:00:00]} Nf6 {[%emt 0:00:00]} 4. d3 {[%emt 0:00:00]} Bc5 {[%emt 0:00:00]} 5. c3 {[%emt 0:00:00]} d5 {[%emt 0:00:01]} 6. exd5 {[%emt 0:11:45]} Qxd5 {[%emt 0:00:18]} 7. Bc4 {[%emt 0:00:12]} Qd6 {[%emt 0:00:09]} 8. Nbd2 {[%emt 0:02:08]} O-O {[%emt 0:02:43]} 9. O-O {[%emt 0:09:32]} Bf5 {[%emt 0:05:23]} 10. b4 {[%emt 0:04:38]} Bb6 {[%emt 0:00:19]} 11. a4 {[%emt 0:05:12]} Bxd3 {[%emt 0:12:18]} 12. Bxd3 {[%emt 0:08:58]} Qxd3 {[%emt 0:00:08]} 13. a5 {[%emt 0:00:07]} Bxf2+ {[%emt 0:10:12]} 14. Rxf2 {[%emt 0:01:35]} Ng4 {[%emt 0:00:43]} 15. Re2 {[%emt 0:13:43]} Ne3 {[%emt 0:04:15]} 16. Ne1 {[%emt 0:02:47]} Qxc3 {[%emt 0:03:51]} 17. Qb3 {[%emt 0:00:58]} Qxa1 {[%emt 0:07:53]} 18. Bb2 {[%emt 0:00:10]} Qd1 {[%emt 0:00:06]} 19. Qxe3 {[%emt 0:01:19]} Rad8 {[%emt 0:06:58]} 20. Nc4 {[%emt 0:12:18]} f6 {[%emt 0:03:46]} 21. Bc3 {[%emt 0:05:40]} Nd4 {[%emt 0:07:48]} 22. Rd2 {[%emt 0:02:32]} Qb3 {[%emt 0:02:16]} 23. Bxd4 {[%emt 0:03:27]} Qxc4 {[%emt 0:00:49]} 24. Bc5 {[%emt 0:00:16]} Rxd2 {[%emt 0:06:19]} 25. Qxd2 {[%emt 0:00:54]} Ra8 {[%emt 0:00:19]} 26. Nc2 {[%emt 0:04:41]} b6 {[%emt 0:01:29]} 27. Be3 {[%emt 0:01:12]} Qe6 {[%emt 0:03:41]} 28. Na3 {[%emt 0:02:09]} bxa5 {[%emt 0:01:30]} 29. bxa5 {[%emt 0:00:44]} a6 {[%emt 0:00:29]} 30. Qc3 {[%emt 0:00:21]} Qd6 {[%emt 0:03:25]} 31. Bc5 {[%emt 0:02:50]} Qd1+ {[%emt 0:00:33]} 32. Kf2 {[%emt 0:00:04]} Rd8 {[%emt 0:01:44]} 33. Be3 {[%emt 0:00:10]} Qd6 {[%emt 0:01:49]} 34. Nc2 {[%emt 0:02:14]} f5 {[%emt 0:02:42]} 35. Qc4+ {[%emt 0:01:09]} Kh8 {[%emt 0:00:14]} 36. Nb4 {[%emt 0:00:14]} f4 {[%emt 0:01:00]} 37. Bc1 {[%emt 0:00:52]} e4 {[%emt 0:00:50]} 38. Nc6 {[%emt 0:01:58]} Re8 {[%emt 0:04:43]} 39. Ke2 {[%emt 0:01:33]} f3+ {[%emt 0:00:35]} 40. gxf3 {[%emt 0:00:44]} Qxh2+ {[%emt 0:00:11]} 41. Ke3 {[%emt 0:30:26]} Qg3 {[%emt 0:34:46]} 42. Qf7 {[%emt 0:00:00]} Qe1+ {[%emt 0:00:00]} 43. Kd4 {[%emt 0:00:00]} Qd1+ {[%emt 0:00:00]} 0-1

[Event "NED-ch U20 Youth 2019"]
[Site "Assen"]
[Date "2019.05.01"]
[Round "4.2"]
[White "Warmerdam, Max"]
[Black "Elgersma, Simon"]
[Result "1-0"]
[ECO "C18"]
[WhiteElo "2472"]
[BlackElo "2137"]
[Annotator "ChessBase"]
[PlyCount "87"]
[EventDate "2019.04.28"]
[EventType "swiss"]
[EventCountry "NED"]
[SourceTitle "playchess.com"]
[Source "ChessBase"]
[SourceQuality "1"]
[TimeControl "40/5400+30:1800+30"]

1. e4 {[%emt 0:00:00]} e6 {[%emt 0:00:00]} 2. d4 {[%emt 0:00:00]} d5 {[%emt 0:00:00]} 3. Nc3 {[%emt 0:00:00]} Bb4 {[%emt 0:00:21]} 4. e5 {[%emt 0:00:00]} Ne7 {[%emt 0:00:08]} 5. a3 {[%emt 0:00:00]} Bxc3+ {[%emt 0:00:06]} 6. bxc3 {[%emt 0:00:00]} c5 {[%emt 0:00:20]} 7. Qg4 {[%emt 0:00:07]} O-O {[%emt 0:00:10]} 8. Bd3 {[%emt 0:00:04]} f5 {[%emt 0:00:09]} 9. exf6 {[%emt 0:02:03]} Rxf6 {[%emt 0:00:07]} 10. Bg5 {[%emt 0:00:16]} Rf7 {[%emt 0:00:05]} 11. Qh5 {[%emt 0:00:24]} g6 {[%emt 0:00:08]} 12. Qd1 {[%emt 0:00:03]} Qa5 {[%emt 0:00:10]} 13. Nf3 {[%emt 0:01:42]} Nd7 {[%emt 0:14:05]} 14. O-O {[%emt 0:06:00]} c4 {[%emt 0:01:54]} 15. Be2 {[%emt 0:01:26]} Nc6 {[%emt 0:02:42]} 16. Qd2 {[%emt 0:15:40]} Nf6 {[%emt 0:27:08]} 17. Bxf6 {[%emt 0:15:17]} Rxf6 {[%emt 0:00:08]} 18. Ng5 {[%emt 0:07:11]} h6 {[%emt 0:07:31]} 19. Nh3 {[%emt 0:01:19]} Kg7 {[%emt 0:00:54]} 20. f4 {[%emt 0:00:35]} Bd7 {[%emt 0:03:28]} 21. Nf2 {[%emt 0:01:24]} Raf8 {[%emt 0:01:58]} 22. g3 {[%emt 0:01:28]} h5 {[%emt 0:04:27]} 23. Nh3 {[%emt 0:05:46]} Ne7 {[%emt 0:06:02]} 24. Ng5 {[%emt 0:02:09]} Nf5 {[%emt 0:01:41]} 25. Rf3 {[%emt 0:03:54]} b5 {[%emt 0:02:28]} 26. Bf1 {[%emt 0:01:15]} Nd6 {[%emt 0:13:45]} 27. Re3 {[%emt 0:01:14]} Re8 {[%emt 0:02:33]} 28. Bh3 {[%emt 0:00:37]} Qb6 {[%emt 0:00:30]} 29. Rae1 {[%emt 0:09:20]} Nf7 {[%emt 0:01:03]} 30. Nf3 {[%emt 0:01:24]} Nd6 {[%emt 0:01:01]} 31. Ne5 {[%emt 0:00:13]} Bc8 {[%emt 0:01:05]} 32. Bg2 {[%emt 0:02:04]} Qa5 {[%emt 0:03:02]} 33. Qc1 {[%emt 0:01:33]} Nf5 {[%emt 0:00:47]} 34. Rf3 {[%emt 0:00:03]} Nd6 {[%emt 0:00:11]} 35. Qb2 {[%emt 0:00:29]} Qb6 {[%emt 0:02:58]} 36. Rfe3 {[%emt 0:00:24]} a5 {[%emt 0:00:42]} 37. R3e2 {[%emt 0:00:57]} Re7 {[%emt 0:01:17]} 38. Rb1 {[%emt 0:00:22]} Rb7 {[%emt 0:00:35]} 39. Qc1 {[%emt 0:01:47]} Qc7 {[%emt 0:01:46]} 40. Ra1 {[%emt 0:15:50]} Rb6 {[%emt 0:01:48]} 41. Qe1 {[%emt 0:30:51]} Rf8 {[%emt 0:13:25]} 42. Nf3 {[%emt 0:00:00]} Rf6 {[%emt 0:04:03]} 43. Ng5 {[%emt 0:00:00]} Nb7 {[%emt 0:02:39]} 44. Bxd5 {[%emt 0:00:00]} 1-0

[Event "NED-ch U20 Youth 2019"]
[Site "Assen"]
[Date "2019.05.01"]
[Round "4.3"]
[White "Van Dael, Siem"]
[Black "Halfhide, Sebastian"]
[Result "1/2-1/2"]
[ECO "B90"]
[WhiteElo "2206"]
[BlackElo "2274"]
[Annotator "NA"]
[PlyCount "100"]
[EventDate "2019.04.28"]
[EventType "swiss"]
[EventCountry "NED"]
[SourceTitle "playchess.com"]
[Source "ChessBase"]
[SourceQuality "1"]
[TimeControl "40/5400+30:1800+30"]

1. e4 {[%emt 0:00:00]} c5 {[%emt 0:01:58]} 2. Nf3 {[%emt 0:00:00]} d6 {[%emt 0:00:04]} 3. d4 {[%emt 0:00:00]} cxd4 {[%emt 0:00:04]} 4. Nxd4 {[%emt 0:00:00]} Nf6 {[%emt 0:00:04]} 5. Nc3 {[%emt 0:00:00]} a6 {[%emt 0:00:25]} 6. Be3 {[%emt 0:00:05]} Ng4 {[%emt 0:00:15]} 7. Bc1 {[%emt 0:00:07]} Nf6 {[%emt 0:00:14]} 8. f3 {[%emt 0:01:44]} Qb6 {[%emt 0:00:05]} 9. Nb3 {[%emt 0:00:33]} e6 {[%emt 0:00:53]} 10. Qe2 {[%emt 0:00:27]} Qc7 {[%emt 0:00:41]} 11. Be3 {[%emt 0:00:10]} b5 {[%emt 0:01:02]} 12. Qd2 {[%emt 0:04:20]} Nbd7 {[%emt 0:04:36]} 13. O-O-O {[%emt 0:09:17]} b4 {[%emt 0:07:02]} 14. Ne2 {[%emt 0:05:20]} d5 {[%emt 0:09:54]} 15. Bf4 {[%emt 0:03:37]} e5 {[%emt 0:02:01]} 16. exd5 $15 {[%emt 0:00:07]} Bd6 {[%emt 0:02:46]} 17. Be3 {[%emt 0:07:16]} a5 {[%emt 0:11:28]} 18. Kb1 {[%emt 0:00:24]} a4 {[%emt 0:01:23]} 19. Nbc1 {[%emt 0:00:07]} Bb7 {[%emt 0:54:35]} 20. c4 {[%emt 0:02:14]} Qxc4 {[%emt 0:00:00]} 21. Nf4 {[%emt 0:00:50]} Qc7 {[%emt 0:00:00]} 22. Ne6 {[%emt 0:00:49]} fxe6 {[%emt 0:00:00]} 23. dxe6 {[%emt 0:00:04]} Bd5 {[%emt 0:00:00]} 24. exd7+ {[%emt 0:00:11]} Qxd7 {[%emt 0:00:00]} 25. Bg5 {[%emt 0:01:59]} Ra5 {[%emt 0:00:00]} 26. Bxf6 {[%emt 0:06:08]} gxf6 {[%emt 0:00:00]} 27. Bc4 {[%emt 0:01:52]} Bxc4 {[%emt 0:00:00]} 28. Qxd6 {[%emt 0:00:07]} Qxd6 {[%emt 0:00:00]} 29. Rxd6 {[%emt 0:00:06]} Ra6 {[%emt 0:00:00]} 30. Rhd1 {[%emt 0:00:42]} Rxd6 {[%emt 0:00:00]} 31. Rxd6 {[%emt 0:00:06]} Ke7 {[%emt 0:00:00]} 32. Rb6 {[%emt 0:01:02]} Bf1 {[%emt 0:00:00]} 33. g3 {[%emt 0:01:24]} Bg2 {[%emt 0:00:00]} 34. Rxb4 {[%emt 0:03:31]} Bxf3 {[%emt 0:00:00]} 35. Rxa4 {[%emt 0:00:07]} Rd8 {[%emt 0:08:00]} 36. Nb3 {[%emt 0:04:24]} Rd1+ {[%emt 0:00:00]} 37. Kc2 {[%emt 0:01:04]} Rh1 {[%emt 0:00:00]} 38. Kc3 {[%emt 0:11:02]} Rxh2 {[%emt 0:00:00]} 39. Nd2 {[%emt 0:00:13]} Bd5 {[%emt 0:00:00]} 40. Rh4 {[%emt 0:05:03]} Rxh4 {[%emt 0:00:00]} 41. gxh4 {[%emt 0:30:04]} Bxa2 {[%emt 0:29:41]} 42. b3 {[%emt 0:00:08]} Ke6 {[%emt 0:00:00]} 43. Kb2 {[%emt 0:00:00]} Bxb3 {[%emt 0:00:00]} 44. Kxb3 {[%emt 0:00:00]} Kf5 {[%emt 0:00:00]} 45. Kc4 {[%emt 0:00:00]} Kg4 {[%emt 0:00:00]} 46. Kd5 {[%emt 0:00:00]} Kxh4 {[%emt 0:00:00]} 47. Ke6 {[%emt 0:00:00]} Kg4 {[%emt 0:00:00]} 48. Ne4 {[%emt 0:00:00]} f5 {[%emt 0:00:00]} 49. Nf6+ {[%emt 0:00:00]} Kf4 {[%emt 0:00:00]} 50. Nd5+ {[%emt 0:00:00]} Ke4 {[%emt 0:00:00]} 1/2-1/2

[Event "NED-ch U20 Youth 2019"]
[Site "Assen"]
[Date "2019.05.01"]
[Round "4.4"]
[White "Mesman, Edwyn"]
[Black "Pols, Wiggert"]
[Result "1/2-1/2"]
[ECO "E73"]
[WhiteElo "2224"]
[BlackElo "2104"]
[Annotator "NA"]
[PlyCount "61"]
[EventDate "2019.04.28"]
[EventType "swiss"]
[EventCountry "NED"]
[SourceTitle "playchess.com"]
[Source "ChessBase"]
[SourceQuality "1"]
[TimeControl "40/5400+30:1800+30"]

1. d4 {[%emt 0:13:04]} Nf6 {[%emt 0:00:00]} 2. c4 {[%emt 0:00:12]} g6 {[%emt 0:00:00]} 3. Nc3 {[%emt 0:00:07]} Bg7 {[%emt 0:00:00]} 4. e4 {[%emt 0:00:08]} d6 {[%emt 0:00:00]} 5. Be2 {[%emt 0:00:08]} O-O {[%emt 0:00:00]} 6. Be3 {[%emt 0:00:05]} e5 {[%emt 0:00:08]} 7. d5 {[%emt 0:00:08]} Ne8 {[%emt 0:02:28]} 8. g4 {[%emt 0:01:53]} c5 {[%emt 0:03:51]} 9. h4 {[%emt 0:01:58]} f5 {[%emt 0:04:45]} 10. gxf5 {[%emt 0:02:20]} gxf5 {[%emt 0:00:20]} 11. exf5 {[%emt 0:00:08]} Bxf5 {[%emt 0:03:09]} 12. Bd3 $14 {[%emt 0:13:20]} e4 {[%emt 0:07:10]} 13. Nxe4 {[%emt 0:00:20]} h6 {[%emt 0:00:34]} 14. Ne2 {[%emt 0:04:44]} Nd7 {[%emt 0:21:06]} 15. N2g3 {[%emt 0:14:41]} Bh7 {[%emt 0:08:44]} 16. Ng5 {[%emt 0:13:03]} Bxd3 {[%emt 0:18:06]} 17. Qxd3 {[%emt 0:00:12]} hxg5 {[%emt 0:00:52]} 18. hxg5 {[%emt 0:00:07]} Rf3 {[%emt 0:07:03]} 19. Qh7+ {[%emt 0:11:24]} Kf8 {[%emt 0:00:00]} 20. Nf5 {[%emt 0:00:00]} Ne5 {[%emt 0:14:13]} 21. Nxg7 {[%emt 0:11:02]} Nxg7 {[%emt 0:00:13]} 22. g6 {[%emt 0:00:10]} Qf6 {[%emt 0:06:34]} 23. Qh8+ {[%emt 0:00:15]} Ke7 {[%emt 0:00:05]} 24. Qxa8 {[%emt 0:00:09]} Nd3+ {[%emt 0:01:38]} 25. Ke2 {[%emt 0:01:12]} Rxf2+ {[%emt 0:00:35]} 26. Bxf2 {[%emt 0:05:59]} Qxf2+ {[%emt 0:00:07]} 27. Kxd3 {[%emt 0:00:19]} Qd4+ {[%emt 0:00:22]} 28. Ke2 {[%emt 0:00:31]} Qxc4+ {[%emt 0:00:52]} 29. Kf2 {[%emt 0:01:10]} Qf4+ {[%emt 0:00:13]} 30. Ke2 {[%emt 0:00:10]} Qe4+ {[%emt 0:00:09]} 31. Kf2 {[%emt 0:00:05]} 1/2-1/2

[Event "NED-ch U20 Youth 2019"]
[Site "Assen"]
[Date "2019.05.01"]
[Round "4.5"]
[White "Van Roon, Sjoerd"]
[Black "Ghebreab, Elnathan"]
[Result "1-0"]
[ECO "B32"]
[WhiteElo "2115"]
[BlackElo "1882"]
[Annotator "NA"]
[PlyCount "92"]
[EventDate "2019.04.28"]
[EventType "swiss"]
[EventCountry "NED"]
[SourceTitle "playchess.com"]
[Source "ChessBase"]
[SourceQuality "1"]
[TimeControl "40/5400+30:1800+30"]

1. e4 {[%emt 0:00:00]} c5 {[%emt 0:00:00]} 2. Nf3 {[%emt 0:00:00]} Nc6 {[%emt 0:00:49]} 3. d4 {[%emt 0:00:00]} cxd4 {[%emt 0:00:06]} 4. Nxd4 {[%emt 0:00:00]} e5 {[%emt 0:00:11]} 5. Nb5 {[%emt 0:00:07]} d6 {[%emt 0:00:14]} 6. N1c3 {[%emt 0:00:20]} a6 {[%emt 0:00:08]} 7. Na3 {[%emt 0:00:03]} b5 {[%emt 0:00:04]} 8. Nd5 {[%emt 0:00:02]} Nge7 {[%emt 0:00:07]} 9. c4 {[%emt 0:01:04]} Nxd5 {[%emt 0:00:12]} 10. exd5 {[%emt 0:00:06]} Nd4 {[%emt 0:00:39]} 11. cxb5 {[%emt 0:02:30]} g6 {[%emt 0:01:08]} 12. Be3 {[%emt 0:02:59]} Bg7 {[%emt 0:00:20]} 13. Bxd4 {[%emt 0:02:06]} exd4 {[%emt 0:00:06]} 14. Bd3 {[%emt 0:00:47]} O-O {[%emt 0:00:08]} 15. O-O {[%emt 0:00:25]} Qa5 {[%emt 0:00:10]} 16. Qe1 {[%emt 0:09:32]} axb5 {[%emt 0:04:54]} 17. Qxa5 {[%emt 0:02:47]} Rxa5 {[%emt 0:00:02]} 18. Nxb5 {[%emt 0:00:24]} Bf5 {[%emt 0:01:55]} 19. Bxf5 {[%emt 0:02:00]} Rxb5 {[%emt 0:00:15]} 20. Bd3 {[%emt 0:01:22]} Rxb2 {[%emt 0:01:36]} 21. a4 {[%emt 1:13:56]} Ra8 {[%emt 0:12:33]} 22. a5 {[%emt 0:00:00]} Rd2 {[%emt 0:06:17]} 23. Bc4 {[%emt 0:00:00]} Rc2 {[%emt 0:03:36]} 24. Bd3 {[%emt 0:00:00]} Rd2 {[%emt 0:00:31]} 25. Bc4 {[%emt 0:00:00]} Rc2 {[%emt 0:00:50]} 26. Ra4 {[%emt 0:00:00]} h5 {[%emt 0:07:02]} 27. a6 {[%emt 0:00:00]} Rxc4 {[%emt 0:00:59]} 28. Rxc4 {[%emt 0:00:00]} Rxa6 {[%emt 0:00:02]} 29. Rc6 {[%emt 0:00:00]} Ra8 {[%emt 0:10:38]} 30. Rxd6 {[%emt 0:00:00]} Kf8 {[%emt 0:04:43]} 31. Rb6 {[%emt 0:00:00]} Rd8 {[%emt 0:04:28]} 32. Rb5 {[%emt 0:00:00]} Ke7 {[%emt 0:01:22]} 33. Rc1 {[%emt 0:00:00]} Kd6 {[%emt 0:01:50]} 34. f4 {[%emt 0:00:00]} Bh6 {[%emt 0:00:02]} 35. g3 {[%emt 0:00:00]} h4 {[%emt 0:00:03]} 36. Rc4 {[%emt 0:00:00]} hxg3 {[%emt 0:02:51]} 37. hxg3 {[%emt 0:00:00]} Bg7 {[%emt 0:00:38]} 38. Rc6+ {[%emt 0:00:00]} Ke7 {[%emt 0:00:31]} 39. Rb7+ {[%emt 0:00:00]} Rd7 {[%emt 0:01:06]} 40. Rxd7+ {[%emt 0:00:00]} Kxd7 {[%emt 0:00:02]} 41. Kf2 {[%emt 0:17:06]} Bh8 {[%emt 0:30:36]} 42. Ke2 {[%emt 0:00:32]} Bg7 {[%emt 0:00:14]} 43. Kd3 {[%emt 0:00:06]} Bh8 {[%emt 0:00:10]} 44. Ra6 {[%emt 0:00:06]} Bg7 {[%emt 0:00:06]} 45. Kc4 {[%emt 0:00:37]} Bh8 {[%emt 0:00:07]} 46. Ra7+ {[%emt 0:00:26]} Ke8 {[%emt 0:38:39]} 1-0

[Event "NED-ch U20 Youth 2019"]
[Site "Assen"]
[Date "2019.05.01"]
[Round "4.6"]
[White "Van Hoorn, Geert"]
[Black "Ypma, Jord"]
[Result "0-1"]
[ECO "B21"]
[WhiteElo "1965"]
[BlackElo "1854"]
[Annotator "NA"]
[PlyCount "68"]
[EventDate "2019.04.28"]
[EventType "swiss"]
[EventCountry "NED"]
[SourceTitle "playchess.com"]
[Source "ChessBase"]
[SourceQuality "1"]
[TimeControl "40/5400+30:1800+30"]

1. e4 {[%emt 0:00:00]} c5 {[%emt 0:00:06]} 2. Be2 {[%emt 0:00:00]} Nc6 {[%emt 0:01:16]} 3. f4 {[%emt 0:00:04]} e6 {[%emt 0:00:37]} 4. Nf3 {[%emt 0:00:07]} g6 {[%emt 0:01:20]} 5. O-O {[%emt 0:00:13]} Bg7 {[%emt 0:00:31]} 6. c3 {[%emt 0:00:24]} Nge7 {[%emt 0:04:18]} 7. d3 {[%emt 0:01:55]} d5 {[%emt 0:01:24]} 8. Be3 {[%emt 0:01:32]} d4 {[%emt 0:01:31]} 9. Bf2 {[%emt 0:03:20]} O-O {[%emt 0:02:06]} 10. c4 {[%emt 0:00:19]} a6 {[%emt 0:02:13]} 11. Nbd2 {[%emt 0:01:11]} f5 {[%emt 0:11:56]} 12. e5 {[%emt 0:01:20]} h6 {[%emt 0:07:46]} 13. Kh1 {[%emt 0:03:13]} Kh7 {[%emt 0:01:42]} 14. Rg1 {[%emt 0:01:53]} b6 {[%emt 0:00:29]} 15. a3 {[%emt 0:06:18]} a5 {[%emt 0:02:12]} 16. g4 {[%emt 0:08:42]} Bb7 {[%emt 0:02:41]} 17. g5 {[%emt 0:05:49]} Rh8 {[%emt 0:04:39]} 18. h3 {[%emt 0:02:31]} Qc7 {[%emt 0:07:05]} 19. Kh2 {[%emt 0:01:49]} Nd8 {[%emt 0:00:27]} 20. Bh4 {[%emt 0:07:17]} Nf7 {[%emt 0:03:04]} 21. gxh6 {[%emt 0:01:49]} Bxh6 {[%emt 0:00:31]} 22. Ng5+ {[%emt 0:00:16]} Bxg5 {[%emt 0:00:52]} 23. Bxg5 {[%emt 0:00:29]} Nxg5 {[%emt 0:00:12]} 24. Rxg5 {[%emt 0:00:17]} Kg7 {[%emt 0:00:45]} 25. Bf3 {[%emt 0:02:13]} Rh4 {[%emt 0:01:13]} 26. Bxb7 {[%emt 0:03:57]} Qxb7 {[%emt 0:00:32]} 27. Qf3 {[%emt 0:00:36]} Qa6 {[%emt 0:12:49]} 28. Rag1 {[%emt 0:07:50]} Rah8 {[%emt 0:00:39]} 29. R5g3 {[%emt 0:03:36]} R8h6 {[%emt 0:06:38]} 30. a4 {[%emt 0:03:09]} Qc8 {[%emt 0:01:58]} 31. Nb1 {[%emt 0:13:12]} Qc6 {[%emt 0:02:39]} 32. Na3 {[%emt 0:01:50]} Rxh3+ {[%emt 0:00:50]} 33. Kg2 {[%emt 0:02:40]} Rxg3+ {[%emt 0:00:31]} 34. Kxg3 {[%emt 0:00:41]} Rh3+ {[%emt 0:00:08]} 0-1